fUST/lending_fUST_20240912
["ID","MTS","AMOUNT","RATE_DAILY","PERIOD"]
[337807939,1726127456908,-500.0,0.00017573,2]
[337807940,1726127456918,-500.0,0.00017573,2]
[337807941,1726127456927,-150.112233,0.000176,2]
[337807942,1726127456937,-150.112233,0.000178,2]
[337807943,1726127456947,-151.0,0.00017808,2]
[337807944,1726127456957,-153.750124,0.00017808,2]
[337807945,1726127456967,-500.0,0.00017808,2]
[337807946,1726127456977,-500.0,0.00017808,2]
[337807947,1726127456986,-500.0,0.00017808,2]
[337807948,1726127456995,-500.0,0.00017808,2]
[337807949,1726127457005,-500.0,0.00017808,2]
[337807950,1726127457016,-500.0,0.00017808,2]
[337807951,1726127457027,-544.79,0.00017808,2]
[337807952,1726127457037,-500.0,0.00017808,2]
[337807953,1726127457046,-500.0,0.00017808,2]
[337807954,1726127457055,-500.0,0.00017808,2]
[337807955,1726127457066,-650.17,0.00017808,2]
[337807956,1726127457076,-500.0,0.00017808,2]
[337807957,1726127457086,-625.23,0.00017808,2]
[337807958,1726127457096,-500.0,0.00017808,2]
[337807959,1726127457108,-500.0,0.00017808,2]
[337807960,1726127457118,-500.0,0.00017808,2]
[337807961,1726127457130,-500.0,0.00017808,2]
[337807962,1726127457141,-500.0,0.00017808,2]
[337807963,1726127457152,-325.37,0.00017808,2]
[337807964,1726127457162,-475.76754272,0.00017808,2]
[337807965,1726127457171,-500.0,0.00017808,2]
[337807966,1726127457181,-500.0,0.00017808,2]
[337807967,1726127457191,-500.0,0.00017808,2]
[337807968,1726127457202,-500.0,0.00017808,2]
[337807969,1726127457211,-500.0,0.00017808,2]
[337807970,1726127457221,-500.0,0.00017808,2]
[337807971,1726127457231,-589.31,0.00017808,2]
[337807972,1726127457242,-500.0,0.00017808,2]
[337807973,1726127457253,-431.35775435,0.00017808,2]
[337807974,1726127457264,-500.0,0.00017808,2]
[337807975,1726127457274,-548.24,0.00017808,2]
[337807976,1726127457283,-500.0,0.00017808,2]
[337807977,1726127457293,-500.0,0.00017808,2]
[337807978,1726127457302,-500.0,0.00017808,2]
[337807979,1726127457312,-665.42,0.00017808,2]
[337807980,1726127457322,-500.0,0.00017808,2]
[337807981,1726127457331,-703.58,0.00017808,2]
[337807982,1726127457341,-528.83,0.00017808,2]
[337807983,1726127457351,-542.22,0.00017808,2]
[337807984,1726127457361,-500.0,0.00017808,2]
[337807985,1726127457371,-500.0,0.00017808,2]
[337807986,1726127457380,-500.0,0.00017808,2]
[337807987,1726127457389,-822.69,0.00017808,2]
[337807988,1726127457399,-946.31,0.00017808,2]
[337807989,1726127457408,-500.0,0.00017808,2]
[337807990,1726127457418,-500.0,0.00017808,2]
[337807991,1726127457427,-369.4811855,0.00017808,2]
[337807992,1726127457438,-500.0,0.00017808,2]
[337807993,1726127457448,-582.35,0.00017808,2]
[337807994,1726127457457,-679.76,0.00017808,2]
[337807995,1726127457466,-500.0,0.00017808,2]
[337807996,1726127457476,-500.0,0.00017808,2]
[337807997,1726127457485,-500.0,0.00017808,2]
[337807998,1726127457495,-500.0,0.00017808,2]
[337807999,1726127457504,-500.0,0.00017808,2]
[337808000,1726127457513,-550.69,0.00017808,2]
[337808001,1726127457524,-947.14,0.00017808,2]
[337808002,1726127457533,-284.23917197,0.00017808,2]
[337808003,1726127457542,-500.0,0.00017808,2]
[337808004,1726127457552,-500.0,0.00017808,2]
[337808005,1726127457561,-500.0,0.00017808,2]
[337808006,1726127457571,-500.0,0.00017808,2]
[337808007,1726127457580,-500.0,0.00017808,2]
[337808008,1726127457590,-793.73,0.00017808,2]
[337808009,1726127457606,-4768.22,0.00017808,2]
[337808010,1726127457616,-500.0,0.00017808,2]
[337808011,1726127457626,-500.0,0.00017808,2]
[337808012,1726127457635,-500.0,0.00017808,2]
[337808013,1726127457645,-500.0,0.00017808,2]
[337808014,1726127457655,-500.0,0.00017808,2]
[337808015,1726127457664,-500.0,0.00017808,2]
[337808016,1726127457674,-500.0,0.00017808,2]
[337808017,1726127457683,-500.0,0.00017808,2]
[337808018,1726127457692,-500.0,0.00017808,2]
[337808019,1726127457703,-780.98,0.00017808,2]
[337808020,1726127457713,-500.0,0.00017808,2]
[337808021,1726127457722,-500.0,0.00017808,2]
[337808022,1726127457731,-500.0,0.00017808,2]
[337808023,1726127457740,-500.0,0.00017808,2]
[337808024,1726127457750,-500.0,0.00017808,2]
[337808025,1726127457759,-500.0,0.00017808,2]
[337808026,1726127457769,-500.0,0.00017808,2]
[337808027,1726127457779,-500.0,0.00017808,2]
[337808028,1726127457788,-500.0,0.00017808,2]
[337808029,1726127457798,-606.79,0.00017808,2]
[337808030,1726127457808,-500.0,0.00017808,2]
[337808031,1726127457818,-500.0,0.00017808,2]
[337808032,1726127457828,-500.0,0.00017808,2]
[337808033,1726127457838,-500.0,0.00017808,2]
[337808034,1726127457848,-500.0,0.00017808,2]
[337808035,1726127457858,-523.13,0.00017808,2]
[337808036,1726127457868,-4925.03,0.00017808,2]
[337808037,1726127457877,-500.0,0.00017808,2]
[337808038,1726127457887,-557.37,0.00017808,2]
[337808039,1726127457898,-500.0,0.00017808,2]
[337808040,1726127457907,-500.0,0.00017808,2]
[337808041,1726127457917,-500.0,0.00017808,2]
[337808042,1726127457927,-4495.35,0.00017808,2]
[337808043,1726127457939,-500.0,0.00017808,2]
[337808044,1726127457949,-500.0,0.00017808,2]
[337808045,1726127457962,-500.0,0.00017808,2]
[337808046,1726127457971,-575.99,0.00017808,2]
[337808047,1726127457980,-500.0,0.00017808,2]
[337808048,1726127457990,-558.63,0.00017808,2]
[337808049,1726127458000,-510.14,0.00017808,2]
[337808050,1726127458010,-500.0,0.00017808,2]
[337808051,1726127458020,-1108.71,0.00017808,2]
[337808052,1726127458031,-500.0,0.00017808,2]
[337808053,1726127458041,-500.0,0.00017808,2]
[337808054,1726127458051,-4015.98,0.00017808,2]
[337808055,1726127458060,-500.0,0.00017808,2]
[337808056,1726127458069,-5742.56,0.00017808,2]
[337808057,1726127458080,-500.0,0.00017808,2]
[337808058,1726127458090,-1419.07,0.00017808,2]
[337808059,1726127458099,-500.0,0.00017808,2]
[337808060,1726127458109,-500.0,0.00017808,2]
[337808061,1726127458119,-521.14,0.00017808,2]
[337808062,1726127458129,-500.0,0.00017808,2]
[337808063,1726127458139,-500.0,0.00017808,2]
[337808064,1726127458157,-982.47,0.00017808,2]
[337808065,1726127458170,-1031.39,0.00017808,2]
[337808066,1726127458179,-500.0,0.00017808,2]
[337808067,1726127458190,-1729.02,0.00017808,2]
[337808068,1726127458201,-911.17,0.00017808,2]
[337808069,1726127458212,-216.69527669,0.00017808,2]
[337808070,1726127458222,-500.0,0.00017808,2]
[337808071,1726127458231,-675.91,0.00017808,2]
[337808072,1726127458241,-500.0,0.00017808,2]
[337808073,1726127458253,-827.28,0.00017808,2]
[337808074,1726127458263,-590.66,0.00017808,2]
[337808075,1726127458272,-500.0,0.00017808,2]
[337808076,1726127458283,-500.0,0.00017808,2]
[337808077,1726127458292,-500.0,0.00017808,2]
[337808078,1726127458302,-500.0,0.00017808,2]
[337808079,1726127458312,-500.0,0.00017808,2]
[337808080,1726127458322,-502.97725022,0.00017842,2]
[337808081,1726127458331,-1000.0,0.00017842,2]
[337808082,1726127458341,-642.98791827,0.00017842,2]
[337808083,1726127458350,-162.31002438,0.00017842,2]
[337808084,1726127458360,-1000.0,0.00017842,2]
[337808085,1726127458370,-1000.0,0.00017842,2]
[337808086,1726127458380,-1000.0,0.00017842,2]
[337808087,1726127458390,-334.57512543,0.00017842,2]
[337808088,1726127458400,-1000.0,0.00017842,2]
[337808089,1726127458410,-1000.0,0.00017842,2]
[337808090,1726127458419,-500.04927649,0.00017842,2]
[337808091,1726127458430,-309.0,0.00017963,2]
[337808092,1726127458439,-150.112233,0.00018,2]
[337808093,1726127458450,-420.0,0.00018081,2]
[337808094,1726127458459,-151.0,0.00018082,2]
[337808095,1726127458469,-151.0,0.00018082,2]
[337808096,1726127458479,-486.83160452,0.00018082,2]
[337808097,1726127458489,-221.5432591,0.00018082,2]
[337808098,1726127458498,-500.0,0.00018082,2]
[337808099,1726127458508,-500.0,0.00018082,2]
[337808100,1726127458518,-500.0,0.00018082,2]
[337808101,1726127458527,-500.0,0.00018082,2]
[337808102,1726127458537,-544.79,0.00018082,2]
[337808103,1726127458547,-500.0,0.00018082,2]
[337808104,1726127458557,-500.0,0.00018082,2]
[337808105,1726127458566,-500.0,0.00018082,2]
[337808106,1726127458576,-650.17,0.00018082,2]
[337808107,1726127458585,-500.0,0.00018082,2]
[337808108,1726127458595,-625.23,0.00018082,2]
[337808109,1726127458610,-500.0,0.00018082,2]
[337808110,1726127458619,-500.0,0.00018082,2]
[337808111,1726127458628,-500.0,0.00018082,2]
[337808112,1726127458638,-500.0,0.00018082,2]
[337808113,1726127458647,-500.0,0.00018082,2]
[337808114,1726127458657,-500.0,0.00018082,2]
[337808115,1726127458666,-469.34,0.00018082,2]
[337808116,1726127458675,-500.0,0.00018082,2]
[337808117,1726127458685,-500.0,0.00018082,2]
[337808118,1726127458695,-500.0,0.00018082,2]
[337808119,1726127458705,-589.31,0.00018082,2]
[337808120,1726127458714,-500.0,0.00018082,2]
[337808121,1726127458723,-500.0,0.00018082,2]
[337808122,1726127458733,-548.24,0.00018082,2]
[337808123,1726127458742,-500.0,0.00018082,2]
[337808124,1726127458752,-500.0,0.00018082,2]
[337808125,1726127458761,-500.0,0.00018082,2]
[337808126,1726127458770,-665.42,0.00018082,2]
[337808127,1726127458780,-500.0,0.00018082,2]
[337808128,1726127458790,-703.58,0.00018082,2]
[337808129,1726127458803,-528.83,0.00018082,2]
[337808130,1726127458814,-542.22,0.00018082,2]
[337808131,1726127458824,-500.0,0.00018082,2]
[337808132,1726127458835,-500.0,0.00018082,2]
[337808133,1726127458845,-500.0,0.00018082,2]
[337808134,1726127458855,-822.69,0.00018082,2]
[337808135,1726127458864,-946.31,0.00018082,2]
[337808136,1726127458873,-500.0,0.00018082,2]
[337808137,1726127458883,-463.69453916,0.00018082,2]
[337808138,1726127458892,-500.0,0.00018082,2]
[337808139,1726127458901,-679.76,0.00018082,2]
[337808140,1726127458910,-500.0,0.00018082,2]
[337808141,1726127458920,-500.0,0.00018082,2]
[337808142,1726127458929,-500.0,0.00018082,2]
[337808143,1726127458939,-500.0,0.00018082,2]
[337808144,1726127458948,-550.69,0.00018082,2]
[337808145,1726127458957,-947.14,0.00018082,2]
[337808146,1726127458968,-500.0,0.00018082,2]
[337808147,1726127459113,-500.0,0.00018082,2]
[337808148,1726127459123,-500.0,0.00018082,2]
[337808149,1726127459132,-500.0,0.00018082,2]
[337808150,1726127459142,-500.0,0.00018082,2]
[337808151,1726127459151,-793.73,0.00018082,2]
[337808152,1726127459160,-4768.22,0.00018082,2]
[337808153,1726127459169,-500.0,0.00018082,2]
[337808154,1726127459179,-500.0,0.00018082,2]
[337808155,1726127459189,-500.0,0.00018082,2]
[337808156,1726127459198,-500.0,0.00018082,2]
[337808157,1726127459208,-500.0,0.00018082,2]
[337808158,1726127459217,-500.0,0.00018082,2]
[337808159,1726127459226,-500.0,0.00018082,2]
[337808160,1726127459237,-500.0,0.00018082,2]
[337808161,1726127459246,-500.0,0.00018082,2]
[337808162,1726127459256,-780.98,0.00018082,2]
[337808163,1726127459265,-500.0,0.00018082,2]
[337808164,1726127459275,-500.0,0.00018082,2]
[337808165,1726127459291,-500.0,0.00018082,2]
[337808166,1726127459301,-203.14,0.00018082,2]
[337808167,1726127459310,-500.0,0.00018082,2]
[337808168,1726127459320,-500.0,0.00018082,2]
[337808169,1726127459330,-609.02,0.00018082,2]
[337808170,1726127459339,-500.0,0.00018082,2]
[337808171,1726127459350,-497.26813153,0.00018082,2]
[337808172,1726127459360,-606.79,0.00018082,2]
[337808173,1726127459369,-500.0,0.00018082,2]
[337808174,1726127459379,-500.0,0.00018082,2]
[337808175,1726127459389,-500.0,0.00018082,2]
[337808176,1726127459398,-500.0,0.00018082,2]
[337808177,1726127459407,-523.13,0.00018082,2]
[337808178,1726127459417,-4925.03,0.00018082,2]
[337808179,1726127459426,-500.0,0.00018082,2]
[337808180,1726127459436,-557.37,0.00018082,2]
[337808181,1726127459446,-500.0,0.00018082,2]
[337808182,1726127459455,-500.0,0.00018082,2]
[337808183,1726127459464,-500.0,0.00018082,2]
[337808184,1726127459474,-4495.35,0.00018082,2]
[337808185,1726127459484,-500.0,0.00018082,2]
[337808186,1726127459493,-500.0,0.00018082,2]
[337808187,1726127459503,-500.0,0.00018082,2]
[337808188,1726127459512,-575.99,0.00018082,2]
[337808189,1726127459522,-500.0,0.00018082,2]
[337808190,1726127459537,-558.63,0.00018082,2]
[337808191,1726127459546,-510.14,0.00018082,2]
[337808192,1726127459556,-500.0,0.00018082,2]
[337808193,1726127459565,-1108.71,0.00018082,2]
[337808194,1726127459575,-500.0,0.00018082,2]
[337808195,1726127459584,-500.0,0.00018082,2]
[337808196,1726127459594,-4015.98,0.00018082,2]
[337808197,1726127459608,-500.0,0.00018082,2]
[337808198,1726127459618,-5742.56,0.00018082,2]
[337808199,1726127459627,-500.0,0.00018082,2]
[337808200,1726127459636,-1419.07,0.00018082,2]
[337808201,1726127459646,-521.14,0.00018082,2]
[337808202,1726127459655,-500.0,0.00018082,2]
[337808203,1726127459664,-500.0,0.00018082,2]
[337808204,1726127459674,-982.47,0.00018082,2]
[337808205,1726127459687,-1031.39,0.00018082,2]
[337808206,1726127459698,-500.0,0.00018082,2]
[337808207,1726127459708,-1729.02,0.00018082,2]
[337808208,1726127459720,-911.17,0.00018082,2]
[337808209,1726127459731,-500.0,0.00018082,2]
[337808210,1726127459740,-675.91,0.00018082,2]
[337808211,1726127459750,-155.79203219,0.00018082,2]
[337808212,1726127459760,-827.28,0.00018082,2]
[337808213,1726127459771,-590.66,0.00018082,2]
[337808214,1726127459780,-500.0,0.00018082,2]
[337808215,1726127459790,-500.0,0.00018082,2]
[337808216,1726127459800,-500.0,0.00018082,2]
[337808217,1726127459810,-500.0,0.00018082,2]
[337808218,1726127459819,-500.0,0.00018082,2]
[337808219,1726127459830,-150.112233,0.000182,2]
[337808220,1726127459839,-500.0,0.00018356,2]
[337808221,1726127459851,-155.34683637,0.00018356,2]
[337808222,1726127459863,-296.17323841,0.00018356,2]
[337808223,1726127459875,-269.99117305,0.00018356,2]
[337808224,1726127459886,-544.79,0.00018356,2]
[337808225,1726127459898,-500.0,0.00018356,2]
[337808226,1726127459909,-500.0,0.00018356,2]
[337808227,1726127459920,-500.0,0.00018356,2]
[337808228,1726127459933,-650.17,0.00018356,2]
[337808229,1726127459944,-500.0,0.00018356,2]
[337808230,1726127459955,-625.23,0.00018356,2]
[337808231,1726127459966,-500.0,0.00018356,2]
[337808232,1726127459976,-500.0,0.00018356,2]
[337808233,1726127459987,-500.0,0.00018356,2]
[337808234,1726127459996,-642.94545861,0.00018356,2]
[337808235,1726127460007,-500.0,0.00018356,2]
[337808236,1726127460017,-500.0,0.00018356,2]
[337808237,1726127460027,-500.0,0.00018356,2]
[337808238,1726127460037,-500.0,0.00018356,2]
[337808239,1726127460047,-500.0,0.00018356,2]
[337808240,1726127460057,-589.31,0.00018356,2]
[337808241,1726127460067,-500.0,0.00018356,2]
[337808242,1726127460077,-500.0,0.00018356,2]
[337808243,1726127460086,-548.24,0.00018356,2]
[337808244,1726127460095,-500.0,0.00018356,2]
[337808245,1726127460104,-500.0,0.00018356,2]
[337808246,1726127460114,-500.0,0.00018356,2]
[337808247,1726127460124,-665.42,0.00018356,2]
[337808248,1726127460135,-500.0,0.00018356,2]
[337808249,1726127460145,-703.58,0.00018356,2]
[337808250,1726127460155,-528.83,0.00018356,2]
[337808251,1726127460166,-542.22,0.00018356,2]
[337808252,1726127460176,-407.19639989,0.00018356,2]
[337808253,1726127460185,-244.26794161,0.00018356,2]
[337808254,1726127460200,-500.0,0.00018356,2]
[337808255,1726127460210,-822.69,0.00018356,2]
[337808256,1726127460219,-946.31,0.00018356,2]
[337808257,1726127460228,-500.0,0.00018356,2]
[337808258,1726127460238,-500.0,0.00018356,2]
[337808259,1726127460248,-679.76,0.00018356,2]
[337808260,1726127460258,-500.0,0.00018356,2]
[337808261,1726127460268,-500.0,0.00018356,2]
[337808262,1726127460279,-195.10130144,0.00018356,2]
[337808263,1726127460291,-500.0,0.00018356,2]
[337808264,1726127460301,-550.69,0.00018356,2]
[337808265,1726127460310,-947.14,0.00018356,2]
[337808266,1726127460319,-500.0,0.00018356,2]
[337808267,1726127460329,-500.0,0.00018356,2]
[337808268,1726127460340,-500.0,0.00018356,2]
[337808269,1726127460349,-500.0,0.00018356,2]
[337808270,1726127460359,-793.73,0.00018356,2]
[337808271,1726127460368,-4768.22,0.00018356,2]
[337808272,1726127460377,-500.0,0.00018356,2]
[337808273,1726127460387,-500.0,0.00018356,2]
[337808274,1726127460396,-500.0,0.00018356,2]
[337808275,1726127460405,-324.69090998,0.00018356,2]
[337808276,1726127460415,-500.0,0.00018356,2]
[337808277,1726127460425,-500.0,0.00018356,2]
[337808278,1726127460434,-500.0,0.00018356,2]
[337808279,1726127460443,-500.0,0.00018356,2]
[337808280,1726127460452,-780.98,0.00018356,2]
[337808281,1726127460462,-500.0,0.00018356,2]
[337808282,1726127460472,-500.0,0.00018356,2]
[337808283,1726127460482,-500.0,0.00018356,2]
[337808284,1726127460492,-500.0,0.00018356,2]
[337808285,1726127460503,-500.0,0.00018356,2]
[337808286,1726127460512,-500.0,0.00018356,2]
[337808287,1726127460522,-606.79,0.00018356,2]
[337808288,1726127460532,-500.0,0.00018356,2]
[337808289,1726127460542,-500.0,0.00018356,2]
[337808290,1726127460552,-500.0,0.00018356,2]
[337808291,1726127460561,-523.13,0.00018356,2]
[337808292,1726127460571,-3917.31611876,0.00018356,2]
[337808293,1726127460592,-1007.71388124,0.00018356,2]
[337808294,1726127460606,-500.0,0.00018356,2]
[337808295,1726127460616,-557.37,0.00018356,2]
[337808296,1726127460625,-500.0,0.00018356,2]
[337808297,1726127460636,-457.21949189,0.00018356,2]
[337808298,1726127460953,-500.0,0.00016438,2]
[337808299,1726127460963,-500.0,0.00016438,2]
[337808300,1726127460973,-500.0,0.00016438,2]
[337808301,1726127460985,-500.0,0.00016438,2]
[337808302,1726127460996,-500.0,0.00016438,2]
[337808303,1726127461006,-500.0,0.00016712,2]
[337808304,1726127461015,-500.0,0.00016712,2]
[337808305,1726127461025,-500.0,0.00016712,2]
[337808306,1726127461036,-500.0,0.00016712,2]
[337808307,1726127461047,-500.0,0.00016712,2]
[337808308,1726127461056,-500.0,0.00016712,2]
[337808309,1726127461066,-500.0,0.00016986,2]
[337808310,1726127461076,-500.0,0.00016986,2]
[337808311,1726127461087,-500.0,0.00016986,2]
[337808312,1726127461097,-500.0,0.00016986,2]
[337808313,1726127461106,-500.0,0.00016986,2]
[337808314,1726127461115,-500.0,0.0001726,2]
[337808315,1726127461125,-500.0,0.0001726,2]
[337808316,1726127461134,-176.43,0.0001726,2]
[337808317,1726127461144,-411.48,0.00017534,2]
[337808318,1726127461154,-200.28,0.00017534,2]
[337808319,1726127461173,-42.78050811,0.00018356,2]
[337808320,1726127461183,-500.0,0.00018356,2]
[337808321,1726127461192,-4495.35,0.00018356,2]
[337808322,1726127461202,-500.0,0.00018356,2]
[337808323,1726127461212,-500.0,0.00018356,2]
[337808324,1726127461221,-500.0,0.00018356,2]
[337808325,1726127461232,-575.99,0.00018356,2]
[337808326,1726127461241,-500.0,0.00018356,2]
[337808327,1726127461251,-510.14,0.00018356,2]
[337808328,1726127461261,-558.63,0.00018356,2]
[337808329,1726127461271,-1108.71,0.00018356,2]
[337808330,1726127461281,-500.0,0.00018356,2]
[337808331,1726127461290,-500.0,0.00018356,2]
[337808332,1726127461300,-4015.98,0.00018356,2]
[337808333,1726127461309,-500.0,0.00018356,2]
[337808334,1726127461319,-5742.56,0.00018356,2]
[337808335,1726127461330,-500.0,0.00018356,2]
[337808336,1726127461341,-1419.07,0.00018356,2]
[337808337,1726127461351,-521.14,0.00018356,2]
[337808338,1726127461361,-500.0,0.00018356,2]
[337808339,1726127461371,-500.0,0.00018356,2]
[337808340,1726127461380,-982.47,0.00018356,2]
[337808341,1726127461390,-1031.39,0.00018356,2]
[337808342,1726127461403,-500.0,0.00018356,2]
[337808343,1726127461415,-1729.02,0.00018356,2]
[337808344,1726127461427,-911.17,0.00018356,2]
[337808345,1726127461437,-500.0,0.00018356,2]
[337808346,1726127461447,-675.91,0.00018356,2]
[337808347,1726127461457,-827.28,0.00018356,2]
[337808348,1726127461468,-590.66,0.00018356,2]
[337808349,1726127461477,-500.0,0.00018356,2]
[337808350,1726127461486,-500.0,0.00018356,2]
[337808351,1726127461496,-500.0,0.00018356,2]
[337808352,1726127461506,-500.0,0.00018356,2]
[337808353,1726127461515,-500.0,0.00018356,2]
[337808354,1726127461525,-500.0,0.0001863,2]
[337808355,1726127461536,-544.79,0.0001863,2]
[337808356,1726127461545,-500.0,0.0001863,2]
[337808357,1726127461554,-500.0,0.0001863,2]
[337808358,1726127461563,-500.0,0.0001863,2]
[337808359,1726127461573,-650.17,0.0001863,2]
[337808360,1726127461582,-360.0487485,0.0001863,2]
[337808361,1726127461591,-625.23,0.0001863,2]
[337808362,1726127461602,-500.0,0.0001863,2]
[337808363,1726127461612,-500.0,0.0001863,2]
[337808364,1726127461622,-500.0,0.0001863,2]
[337808365,1726127461631,-264.66146259,0.0001863,2]
[337808366,1726127461643,-500.0,0.0001863,2]
[337808367,1726127461654,-500.0,0.0001863,2]
[337808368,1726127461664,-500.0,0.0001863,2]
[337808369,1726127461675,-173.44822554,0.0001863,2]
[337808370,1726127461685,-589.31,0.0001863,2]
[337808371,1726127461694,-500.0,0.0001863,2]
[337808372,1726127461704,-500.0,0.0001863,2]
[337808373,1726127461714,-548.24,0.0001863,2]
[337808374,1726127461724,-500.0,0.0001863,2]
[337808375,1726127461735,-500.0,0.0001863,2]
[337808376,1726127461745,-500.0,0.0001863,2]
[337808377,1726127461755,-665.42,0.0001863,2]
[337808378,1726127461764,-315.90576933,0.0001863,2]
[337808379,1726127461774,-703.58,0.0001863,2]
[337808380,1726127461790,-528.83,0.0001863,2]
[337808381,1726127461800,-542.22,0.0001863,2]
[337808382,1726127461809,-414.08871851,0.0001863,2]
[337808383,1726127461818,-822.69,0.0001863,2]
[337808384,1726127461827,-946.31,0.0001863,2]
[337808385,1726127461838,-500.0,0.0001863,2]
[337808386,1726127461848,-500.0,0.0001863,2]
[337808387,1726127461859,-500.0,0.0001863,2]
[337808388,1726127461868,-500.0,0.0001863,2]
[337808389,1726127461878,-500.0,0.0001863,2]
[337808390,1726127461888,-550.69,0.0001863,2]
[337808391,1726127461898,-947.14,0.0001863,2]
[337808392,1726127461907,-500.0,0.0001863,2]
[337808393,1726127461916,-500.0,0.0001863,2]
[337808394,1726127461926,-500.0,0.0001863,2]
[337808395,1726127461937,-793.73,0.0001863,2]
[337808396,1726127461946,-4768.22,0.0001863,2]
[337808397,1726127461956,-500.0,0.0001863,2]
[337808398,1726127461967,-500.0,0.0001863,2]
[337808399,1726127461976,-500.0,0.0001863,2]
[337808400,1726127461986,-593.86,0.0001863,2]
[337808401,1726127461996,-500.0,0.0001863,2]
[337808402,1726127462006,-500.0,0.0001863,2]
[337808403,1726127462015,-500.0,0.0001863,2]
[337808404,1726127462025,-780.98,0.0001863,2]
[337808405,1726127462036,-500.0,0.0001863,2]
[337808406,1726127462046,-500.0,0.0001863,2]
[337808407,1726127462055,-232.31,0.0001863,2]
[337808408,1726127462065,-500.0,0.0001863,2]
[337808409,1726127462082,-500.0,0.0001863,2]
[337808410,1726127462091,-606.79,0.0001863,2]
[337808411,1726127462100,-500.0,0.0001863,2]
[337808412,1726127462110,-500.0,0.0001863,2]
[337808413,1726127462119,-500.0,0.0001863,2]
[337808414,1726127462128,-523.13,0.0001863,2]
[337808415,1726127462139,-4925.03,0.0001863,2]
[337808416,1726127462147,-500.0,0.0001863,2]
[337808417,1726127462156,-557.37,0.0001863,2]
[337808418,1726127462166,-500.0,0.0001863,2]
[337808419,1726127462175,-500.0,0.0001863,2]
[337808420,1726127462185,-500.0,0.0001863,2]
[337808421,1726127462194,-574.13848294,0.0001863,2]
[337808422,1726127573787,4144.0,0.000185,3]
[337808423,1726127599789,-300.0,0.00016437,2]
[337808424,1726127599813,-500.0,0.00016438,2]
[337808425,1726127599837,-500.0,0.00016438,2]
[337808426,1726127599862,-500.0,0.00016438,2]
[337808427,1726127599891,-618.84,0.00016438,2]
[337808428,1726127599916,-500.0,0.00016438,2]
[337808429,1726127599942,-500.0,0.00016438,2]
[337808430,1726127599967,-500.0,0.00016438,2]
[337808431,1726127599990,-500.0,0.00016438,2]
[337808432,1726127600013,-500.0,0.00016438,2]
[337808433,1726127600037,-500.0,0.00016438,2]
[337808434,1726127600059,-500.0,0.00016438,2]
[337808435,1726127600082,-500.0,0.00016438,2]
[337808436,1726127600105,-500.0,0.00016438,2]
[337808437,1726127600129,-500.0,0.00016438,2]
[337808438,1726127600153,-500.0,0.00016438,2]